Workbook

Sheet PU
A1: 1.1.1 | B1: 9742.26 | C1: 5.11 | D1: 49,782.95 | E1: =LETRAS(C1,1) -> CINCO PESOS 11/100 M.N.
A2: 1.1.2 | B2: 3411.99 | C2: 20.96 | D2: 71,515.31 | E2: =LETRAS(C2,1) -> VEINTE PESOS 96/100 M.N.
A3: 1.1.3 | B3: 5867.82 | C3: 36.64 | D3: 214,996.92 | E3: TREINTA Y SEIS PESOS 64/100 M.N.
A4: 1.1.4 | B4: 8865.45 | C4: 54.25 | D4: 480,950.66 | E4: CINCUENTA Y CUATRO PESOS 25/100 M.N.
A5: 1.1.5 | B5: 9742.26 | C5: 6.74 | D5: 65,662.83 | E5: SEIS PESOS 74/100 M.N.
A6: 1.2.1 | B6: 9742.26 | C6: 42.66 | D6: 415,604.81 | E6: CUARENTA Y DOS PESOS 66/100 M.N.
A7: 1.2.2 | B7: 2922.68 | C7: 220.78 | D7: 645,269.29 | E7: DOSCIENTOS VEINTE PESOS 78/100 M.N.
A8: 1.2.3 | B8: 2922.68 | C8: 36.62 | D8: 107,028.54 | E8: TREINTA Y SEIS PESOS 62/100 M.N.
A9: 1.2.4 | B9: 1682.33 | C9: 157.46 | D9: 264,899.68 | E9: CIENTO CINCUENTA Y SIETE PESOS 46/100 M.N.
A10: 1.2.5 | B10: 1294.10 | C10: 93.34 | D10: 120,791.29 | E10: NOVENTA Y TRES PESOS 34/100 M.N.
A11: 1.2.6 | B11: 2532.98 | C11: 356.88 | D11: 903,969.90 | E11: TRESCIENTOS CINCUENTA Y SEIS PESOS 88/100 M.N.
A12: 1.2.7 | B12: 1948.45 | C12: 120.65 | D12: 235,080.49 | E12: CIENTO VEINTE PESOS 65/100 M.N.
A13: 1.2.8 | B13: 9742.26 | C13: 23.08 | D13: 224,851.36 | E13: VEINTITRES PESOS 08/100 M.N.
A14: 1.2.9 | B14: 9742.26 | C14: 2.24 | D14: 21,822.66 | E14: DOS PESOS 24/100 M.N.
A15: 1.3.1 | B15: 1114.91 | C15: 148.31 | D15: 165,352.30 | E15: CIENTO CUARENTA Y OCHO PESOS 31/100 M.N.
A16: 1.3.2 | B16: 3119.74 | C16: 39.24 | D16: 122,418.60 | E16: TREINTA Y NUEVE PESOS 24/100 M.N.
A17: 1.3.3 | B17: 744.00 | C17: 25.26 | D17: 18,793.44 | E17: VEINTICINCO PESOS 26/100 M.N.
A18: 1.3.4 | B18: 36.00 | C18: 60.03 | D18: 2,161.08 | E18: SESENTA PESOS 03/100 M.N.
A19: 1.4.1 | B19: 8627.35 | C19: 8.56 | D19: 73,850.12 | E19: OCHO PESOS 56/100 M.N.
A20: 1.4.2 | B20: 8627.35 | C20: 229.72 | D20: 1,981,874.84 | E20: DOSCIENTOS VEINTINUEVE PESOS 72/100 M.N.
A21: 1.5.1 | B21: 145.00 | C21: 5.11 | D21: 740.95 | E21: CINCO PESOS 11/100 M.N.
A22: 1.5.2 | B22: 145.00 | C22: 183.20 | D22: 26,564.00 | E22: CIENTO OCHENTA Y TRES PESOS 20/100 M.N.
A23: 1.5.3 | B23: 40.00 | C23: 1,207.96 | D23: 48,318.40 | E23: UN MIL DOSCIENTOS SIETE PESOS 96/100 M.N.
A24: 1.5.4 | B24: 145.00 | C24: 54.25 | D24: 7,866.25 | E24: CINCUENTA Y CUATRO PESOS 25/100 M.N.
A25: 1.5.5 | B25: 21.00 | C25: 20,604.10 | D25: 432,686.10 | E25: VEINTE MIL SEISCIENTOS CUATRO PESOS 10/100 M.N.
A26: 1.5.6 | B26: 28.00 | C26: 60.03 | D26: 1,680.84 | E26: SESENTA PESOS 03/100 M.N.
A27: 1.6.1 | B27: 42.00 | C27: 157.93 | D27: 6,633.06 | E27: CIENTO CINCUENTA Y SIETE PESOS 93/100 M.N.
A28: 5.1 | B28: 1000.00 | C28: 22.51 | D28: 22,510.00 | E28: VEINTIDOS PESOS 51/100 M.N.
A29: 2.1 | B29: 960.00 | C29: 5.11 | D29: 4,905.60 | E29: CINCO PESOS 11/100 M.N.
A30: 2.2 | B30: 392.00 | C30: 136.36 | D30: 53,453.12 | E30: CIENTO TREINTA Y SEIS PESOS 36/100 M.N.
A31: 2.3 | B31: 960.00 | C31: 269.87 | D31: 259,075.20 | E31: DOSCIENTOS SESENTA Y NUEVE PESOS 87/100 M.N.
A32: 2.4 | B32: 23030.80 | C32: 39.24 | D32: 903,728.59 | E32: TREINTA Y NUEVE PESOS 24/100 M.N.
A33: 2.5 | B33: 3200.00 | C33: 56.19 | D33: 179,808.00 | E33: CINCUENTA Y SEIS PESOS 19/100 M.N.
A34: 2.6 | B34: 448.00 | C34: 148.31 | D34: 66,442.88 | E34: CIENTO CUARENTA Y OCHO PESOS 31/100 M.N.
A35: 2.7 | B35: 160.00 | C35: 14.54 | D35: 2,326.40 | E35: CATORCE PESOS 54/100 M.N.
A36: 2.8 | B36: 82.00 | C36: 201.51 | D36: 16,523.82 | E36: DOSCIENTOS UNO PESOS 51/100 M.N.
A37: 3.1.1 | B37: 2686.06 | C37: 5.11 | D37: 13,725.77 | E37: CINCO PESOS 11/100 M.N.
A38: 3.1.2 | B38: 941.69 | C38: 20.96 | D38: 19,737.82 | E38: VEINTE PESOS 96/100 M.N.
A39: 3.1.3 | B39: 470.36 | C39: 36.64 | D39: 17,233.99 | E39: TREINTA Y SEIS PESOS 64/100 M.N.
A40: 3.1.4 | B40: 1835.66 | C40: 54.25 | D40: 99,584.56 | E40: CINCUENTA Y CUATRO PESOS 25/100 M.N.
A41: 3.1.5 | B41: 2686.06 | C41: 6.74 | D41: 18,104.04 | E41: SEIS PESOS 74/100 M.N.
A42: 3.2.1 | B42: 2686.06 | C42: 42.66 | D42: 114,587.32 | E42: CUARENTA Y DOS PESOS 66/100 M.N.
A43: 3.2.2 | B43: 537.21 | C43: 220.78 | D43: 118,605.22 | E43: DOSCIENTOS VEINTE PESOS 78/100 M.N.
A44: 3.2.3 | B44: 537.21 | C44: 36.62 | D44: 19,672.63 | E44: TREINTA Y SEIS PESOS 62/100 M.N.
A45: 3.2.4 | B45: 523.78 | C45: 157.46 | D45: 82,474.40 | E45: CIENTO CINCUENTA Y SIETE PESOS 46/100 M.N.
A46: 3.2.5 | B46: 402.91 | C46: 91.33 | D46: 36,797.77 | E46: NOVENTA Y UN PESOS 33/100 M.N.
A47: 3.2.6 | B47: 698.37 | C47: 356.88 | D47: 249,234.29 | E47: TRESCIENTOS CINCUENTA Y SEIS PESOS 88/100 M.N.
A48: 3.2.7 | B48: 537.21 | C48: 120.65 | D48: 64,814.39 | E48: CIENTO VEINTE PESOS 65/100 M.N.
A49: 3.2.8 | B49: 2686.06 | C49: 23.08 | D49: 61,994.26 | E49: VEINTITRES PESOS 08/100 M.N.
A50: 3.2.9 | B50: 2686.06 | C50: 2.24 | D50: 6,016.77 | E50: DOS PESOS 24/100 M.N.
A51: 3.3.1 | B51: 2686.06 | C51: 8.56 | D51: 22,992.67 | E51: OCHO PESOS 56/100 M.N.
A52: 3.3.2 | B52: 2686.06 | C52: 210.81 | D52: 566,248.31 | E52: DOSCIENTOS DIEZ PESOS 81/100 M.N.
A53: 4.1.1 | B53: 1000.00 | C53: 5.11 | D53: 5,110.00 | E53: CINCO PESOS 11/100 M.N.
A54: 4.1.2 | B54: 300.00 | C54: 36.64 | D54: 10,992.00 | E54: TREINTA Y SEIS PESOS 64/100 M.N.
A55: 4.1.3 | B55: 390.00 | C55: 54.25 | D55: 21,157.50 | E55: CINCUENTA Y CUATRO PESOS 25/100 M.N.
A56: 4.1.4 | B56: 1000.00 | C56: 6.74 | D56: 6,740.00 | E56: SEIS PESOS 74/100 M.N.
A57: 4.2.1 | B57: 1000.00 | C57: 42.66 | D57: 42,660.00 | E57: CUARENTA Y DOS PESOS 66/100 M.N.
A58: 4.2.2 | B58: 300.00 | C58: 220.78 | D58: 66,234.00 | E58: DOSCIENTOS VEINTE PESOS 78/100 M.N.
A59: 4.2.3 | B59: 300.00 | C59: 36.62 | D59: 10,986.00 | E59: TREINTA Y SEIS PESOS 62/100 M.N.
A60: 4.2.4 | B60: 260.00 | C60: 356.88 | D60: 92,788.80 | E60: TRESCIENTOS CINCUENTA Y SEIS PESOS 88/100 M.N.
A61: 4.2.5 | B61: 200.00 | C61: 120.65 | D61: 24,130.00 | E61: CIENTO VEINTE PESOS 65/100 M.N.
A62: 4.2.6 | B62: 1000.00 | C62: 23.08 | D62: 23,080.00 | E62: VEINTITRES PESOS 08/100 M.N.
A63: 4.2.7 | B63: 1000.00 | C63: 2.24 | D63: 2,240.00 | E63: DOS PESOS 24/100 M.N.
A64: 4.3.1 | B64: 1000.00 | C64: 148.31 | D64: 148,310.00 | E64: CIENTO CUARENTA Y OCHO PESOS 31/100 M.N.
A65: 4.3.2 | B65: 2795.00 | C65: 39.24 | D65: 109,675.80 | E65: TREINTA Y NUEVE PESOS 24/100 M.N.
A66: 4.3.3 | B66: 640.00 | C66: 25.26 | D66: 16,166.40 | E66: =LETRAS(C66,1) -> VEINTICINCO PESOS 26/100 M.N.
A67: 5.1.1 | B67: 533.98 | C67: 5.11 | D67: 2,728.64 | E67: CINCO PESOS 11/100 M.N.
A68: 5.1.2 | B68: 186.07 | C68: 20.96 | D68: 3,900.03 | E68: VEINTE PESOS 96/100 M.N.
A69: 5.1.3 | B69: 73.61 | C69: 36.64 | D69: 2,697.07 | E69: TREINTA Y SEIS PESOS 64/100 M.N.
A70: 5.1.4 | B70: 337.58 | C70: 54.25 | D70: 18,313.72 | E70: CINCUENTA Y CUATRO PESOS 25/100 M.N.
A71: 5.1.5 | B71: 533.98 | C71: 6.74 | D71: 3,599.03 | E71: SEIS PESOS 74/100 M.N.
A72: 5.2.1 | B72: 533.98 | C72: 42.66 | D72: 22,779.59 | E72: CUARENTA Y DOS PESOS 66/100 M.N.
A73: 5.2.2 | B73: 106.79 | C73: 220.78 | D73: 23,577.10 | E73: DOSCIENTOS VEINTE PESOS 78/100 M.N.
A74: 5.2.3 | B74: 106.79 | C74: 36.62 | D74: 3,910.65 | E74: TREINTA Y SEIS PESOS 62/100 M.N.
A75: 5.2.4 | B75: 104.12 | C75: 157.46 | D75: 16,394.74 | E75: CIENTO CINCUENTA Y SIETE PESOS 46/100 M.N.
A76: 5.2.5 | B76: 80.10 | C76: 93.34 | D76: 7,476.53 | E76: NOVENTA Y TRES PESOS 34/100 M.N.
A77: 5.2.6 | B77: 138.83 | C77: 356.88 | D77: 49,545.65 | E77: TRESCIENTOS CINCUENTA Y SEIS PESOS 88/100 M.N.
A78: 5.2.7 | B78: 106.79 | C78: 120.65 | D78: 12,884.21 | E78: CIENTO VEINTE PESOS 65/100 M.N.
A79: 5.2.8 | B79: 533.98 | C79: 23.08 | D79: 12,324.26 | E79: VEINTITRES PESOS 08/100 M.N.
A80: 5.2.9 | B80: 533.98 | C80: 2.24 | D80: 1,196.12 | E80: DOS PESOS 24/100 M.N.
A81: 5.3.1 | B81: 533.98 | C81: 8.56 | D81: 4,570.87 | E81: OCHO PESOS 56/100 M.N.
A82: 5.3.2 | B82: 533.98 | C82: 210.81 | D82: 112,568.32 | E82: DOSCIENTOS DIEZ PESOS 81/100 M.N.
D83: =TRUNC(B83*C83,2) -> 0.00
D84: =SUM(D1:D83) -> 10,610,501.52

Sheet CATALOGO
B2: LICITACION: | C2: MC-2317039-039
B3: OBRA: | C3: PRIMERA ETAPA DE PISTA DE ARRANCONES EN COMPLEJO GÓMEZ MORÍN EN CD. CUAUHTÉMOC CHIHUAHUA.
A6: Capítulo | C6: PISTA DE ARRANCONES CD. CUAUHTEMOC, CHIH. | H6: =H8+H44+H53+H73+H91 -> $10,610,501.52
A7: TIPO | B7: CLAVE | C7: DESCRIPCIÓN | D7: UNIDAD | E7: CANTIDAD | F7: PRECIO UNITARIO | G7: CON LETRA | H7: TOTAL
A8: Subcapítulo | B8: 1 | C8: ÁREA DE PISTA | H8: =H9+H15+H25+H30+H33+H40+H42 -> $6,733,676.67
A9: Nivel 3 | B9: 1.1 | C9: PRELIMINARES | H9: =SUM(H10:H14) -> $882,908.67
A10: Concepto | B10: 1.1.1 | C10: Trazo y nivelación de área a intervenir; Incluye: material, mano de obra, herramienta, y todo lo necesario para su correcta ejecución. (incluye: especificación particular y general). | D10: m2 | E10: 9742.26 | F10: =IF(B10>0,VLOOKUP(B10,PU,3,0),0) -> $5.11 | G10: =IF(B10>0,VLOOKUP(B10,PU,5,0),0) -> CINCO PESOS 11/100 M.N. | H10: =IF(B10>0,VLOOKUP(B10,PU,4,0),0) -> $49,782.95
A11: Concepto | B11: 1.1.2 | C11: Despalme por medios mecánicos, para albergar terracerias para mejoramiento de terreno, hasta una profundidad promedio de 0.35 m, incluye: mano de obra, herramienta, equipo, maquinaria y todo lo necesario para su correcta ejecución. (incluye: especificación particular y general). | D11: m3 | E11: 3411.99 | F11: =IF(B11>0,VLOOKUP(B11,PU,3,0),0) -> $20.96 | G11: =IF(B11>0,VLOOKUP(B11,PU,5,0),0) -> VEINTE PESOS 96/100 M.N. | H11: =IF(B11>0,VLOOKUP(B11,PU,4,0),0) -> $71,515.31
A12: Concepto | B12: 1.1.3 | C12: Corte por medios mecánicos, para albergar terracerias para mejoramiento de terreno, hasta una profundidad promedio de 0.40 m promedio incluye: material, mano de obra, herramienta, equipo y todo lo necesario para su correcta ejecución. (incluye: especificación particular y general). | D12: m3 | E12: 5867.82 | F12: =IF(B12>0,VLOOKUP(B12,PU,3,0),0) -> $36.64 | G12: =IF(B12>0,VLOOKUP(B12,PU,5,0),0) -> TREINTA Y SEIS PESOS 64/100 M.N. | H12: =IF(B12>0,VLOOKUP(B12,PU,4,0),0) -> $214,996.92
A13: Concepto | B13: 1.1.4 | C13: Carga y acarreo a tiro libre fuera de la obra de material producto de excavación, demoliciones, en camión, hasta una distancia promedio de 5 km. (incluye: especificación particular y general). | D13: m3 | E13: 8865.45 | F13: =IF(B13>0,VLOOKUP(B13,PU,3,0),0) -> $54.25 | G13: =IF(B13>0,VLOOKUP(B13,PU,5,0),0) -> CINCUENTA Y CUATRO PESOS 25/100 M.N. | H13: =IF(B13>0,VLOOKUP(B13,PU,4,0),0) -> $480,950.66
A14: Concepto | B14: 1.1.5 | C14: Limpieza durante y final de obra, incluye; mano de obra, equipo, herramientas, y todo lo necesario para su correcta ejecución. (incluye: especificación particular y general). | D14: m2 | E14: 9742.26 | F14: =IF(B14>0,VLOOKUP(B14,PU,3,0),0) -> $6.74 | G14: =IF(B14>0,VLOOKUP(B14,PU,5,0),0) -> SEIS PESOS 74/100 M.N. | H14: =IF(B14>0,VLOOKUP(B14,PU,4,0),0) -> $65,662.83
A15: Nivel 3 | B15: 1.2 | C15: TERRACERIAS | H15: =SUM(H16:H24) -> $2,939,318.02
A16: Concepto | B16: 1.2.1 | C16: Tratamiento de terreno natural para formar un piso compacto en un espesor de 20 cm, incluye; afine, sin escarificar, incorporación de humedad, eliminando las particulas mayores a 3" y compactado al 95% de su PVSM determinado mediante las pruebas PROCTOR o AASHTO según se requiera. Supervisión y laboratorio sólo checarán y recibirán tramos completos en caso de ser calles aisladas. (incluye: especificación particular y general). | D16: m2 | E16: 9742.26 | F16: =IF(B16>0,VLOOKUP(B16,PU,3,0),0) -> $42.66 | G16: =IF(B16>0,VLOOKUP(B16,PU,5,0),0) -> CUARENTA Y DOS PESOS 66/100 M.N. | H16: =IF(B16>0,VLOOKUP(B16,PU,4,0),0) -> $415,604.81
A17: Concepto | B17: 1.2.2 | C17: Suministro de matacan de 2" - 8", espesor de 0.30 m, libre de particulas finas incluye; suministro, acarreos dentro de la obra necesarios para su correcta ejecución. (incluye: especificación particular y general). | D17: m3 | E17: 2922.68 | F17: $220.78 | G17: DOSCIENTOS VEINTE PESOS 78/100 M.N. | H17: $645,269.29
A18: Concepto | B18: 1.2.3 | C18: Tratamiento de matacan de 2"- 8" para zona de corte, incluye: afine, escarificación, incorporación de humedad, bandeo hasta lograr su acomodo y compactado al 95% de su PVSM determinado mediante las pruebas PROCTOR o AASHTO según se requiera. Supervisión y laboratorio sólo checarán y recibirán tramos completos. (incluye: especificación particular y general). | D18: m3 | E18: 2922.68 | F18: $36.62 | G18: TREINTA Y SEIS PESOS 62/100 M.N. | H18: $107,028.54
A19: Concepto | B19: 1.2.4 | C19: Suministro de sub-base hidráulica, espesor de 0.15 m, incluye: solo suministro puesto en obra medido suelto, de acuerdo a las normas vigentes S.C.T., A.S.T.M., Y NMX. (incluye: especificación particular y general). | D19: m3 | E19: 1682.33 | F19: $157.46 | G19: CIENTO CINCUENTA Y SIETE PESOS 46/100 M.N. | H19: $264,899.68
A20: Concepto | B20: 1.2.5 | C20: Tratamiento de sub-base hidráulica, incluye: afine, escarificación, incorporación de humedad y compactado al 100 % de su PVSM determinado mediante las pruebas PROCTOR o AASHTO según se requiera. Supervisión y laboratorio sólo checarán y recibirán tramos completos. (incluye: especificación particular y general). | D20: m3 | E20: 1294.10 | F20: $93.34 | G20: NOVENTA Y TRES PESOS 34/100 M.N. | H20: $120,791.29
A21: Concepto | B21: 1.2.6 | C21: Suministro de base hidráulica triturada, espesor de 0.20 m, incluye: solo suministro puesto en obra medido suelto, de acuerdo a las normas vigentes S.C.T., A.S.T.M., Y NMX. (incluye: especificación particular y general). | D21: m3 | E21: 2532.98 | F21: $356.88 | G21: TRESCIENTOS CINCUENTA Y SEIS PESOS 88/100 M.N. | H21: $903,969.90
A22: Concepto | B22: 1.2.7 | C22: Tratamiento de base hidráulica triturada, incluye: afine, escarificación, incorporación de humedad y compactado al 100 % de su PVSM determinado mediante las pruebas PROCTOR o AASHTO según se requiera. Supervisión y laboratorio sólo checarán y recibirán tramos completos. (incluye: especificación particular y general). | D22: m3 | E22: 1948.45 | F22: $120.65 | G22: CIENTO VEINTE PESOS 65/100 M.N. | H22: $235,080.49
A23: Concepto | B23: 1.2.8 | C23: Impregnacion de la base con emulsion asfaltica de rompimiento lento a razon de 1.2 a 1.5 lt/m2. Incluye limpieza de superficie. (incluye: especificación particular y general). | D23: m2 | E23: 9742.26 | F23: $23.08 | G23: VEINTITRES PESOS 08/100 M.N. | H23: $224,851.36
A24: Concepto | B24: 1.2.9 | C24: Poreo a base de arena n° 8 en proporcion de 6 a 8 lt/m2, incluye; suministro, acarreos dentro de la obra necesarios para su correcta ejecución. (incluye: especificación particular y general). | D24: m2 | E24: 9742.26 | F24: $2.24 | G24: DOS PESOS 24/100 M.N. | H24: $21,822.66
A25: Nivel 3 | B25: 1.3 | C25: CARPETA DE CONCRETO | H25: =SUM(H26:H29) -> $308,725.42
A26: Concepto | B26: 1.3.1 | C26: Tendido de carpeta de concreto hidráulico MR= 42.5 de 0.2032 m de espesor (8") con un ancho de losa no mayor de 3.60 m, junta longitudinal con varilla corrugada de 1/2" de 45 cm @ 60 cm, junta transversal aserrada a 1/3 del espesor de la losa de profundidad y la separación entre juntas no mayor de 24 espesores. (concreto suministrado por municipio), (incluye: especificación particular y general). | D26: m2 | E26: 1114.91 | F26: =IF(B26>0,VLOOKUP(B26,PU,3,0),0) -> $148.31 | G26: =IF(B26>0,VLOOKUP(B26,PU,5,0),0) -> CIENTO CUARENTA Y OCHO PESOS 31/100 M.N. | H26: =IF(B26>0,VLOOKUP(B26,PU,4,0),0) -> $165,352.30
A27: Concepto | B27: 1.3.2 | C27: Suministro y habilitado de acero de refuerzo del #3 @ 0.40m en ambos sentidos, para retícula para losa de concreto, incluye: Material, mano de obra, herramienta, equipo, limpieza del lugar de trabajo, y todo lo necesario para su correcta ejecución. (incluye: especificación particular y general). | D27: kg | E27: 3119.74 | F27: =IF(B27>0,VLOOKUP(B27,PU,3,0),0) -> $39.24 | G27: =IF(B27>0,VLOOKUP(B27,PU,5,0),0) -> TREINTA Y NUEVE PESOS 24/100 M.N. | H27: =IF(B27>0,VLOOKUP(B27,PU,4,0),0) -> $122,418.60
A28: Concepto | B28: 1.3.3 | C28: Corte y sellado de juntas en concreto aserrada a 1/3 del espesor de la losa de profundidad, separación entre juntas no mayor de 22 espesores en ambos sentidos, colocación de cola de rata 1/4" a una profundidad de 2.0" aplicacion de Sellador Ultralastic de 2 componentes catalizado, autonivelante, mca. Comex. Incluye: aspirado, limpieza, corte, retiro de exceso, materiales, mano de obra y lo necesario para su correcta construcción. (incluye: especificación particular y general). | D28: m | E28: 744.00 | F28: =IF(B28>0,VLOOKUP(B28,PU,3,0),0) -> $25.26 | G28: =IF(B28>0,VLOOKUP(B28,PU,5,0),0) -> VEINTICINCO PESOS 26/100 M.N. | H28: =IF(B28>0,VLOOKUP(B28,PU,4,0),0) -> $18,793.44
A29: Concepto | B29: 1.3.4 | C29: Construcción de dentellón de 100 lts/ml, Incluye; excavación en material "B-C 70-30", afine, cimbrado y colado. (ESP-01)(ESP-02)(ESP-03) (concreto suministrado por municipio). (incluye: especificación particular y general). | D29: m | E29: 36.00 | F29: =IF(B29>0,VLOOKUP(B29,PU,3,0),0) -> $60.03 | G29: =IF(B29>0,VLOOKUP(B29,PU,5,0),0) -> SESENTA PESOS 03/100 M.N. | H29: =IF(B29>0,VLOOKUP(B29,PU,4,0),0) -> $2,161.08
A30: Nivel 3 | B30: 1.4 | C30: CARPETA ASFALTICA | H30: =SUM(H31:H32) -> $2,055,724.96
A31: Concepto | B31: 1.4.1 | C31: Riego de liga a base de emulsión asfáltica rr-2k de acuerdo a normas s.c.t. vigentes (0.3 a 0.5) lts/m2, el cual podrá variar en función de las condiciones de la superficie por tender. (incluye: especificación particular y general). | D31: m2 | E31: 8627.35 | F31: =IF(B31>0,VLOOKUP(B31,PU,3,0),0) -> $8.56 | G31: =IF(B31>0,VLOOKUP(B31,PU,5,0),0) -> OCHO PESOS 56/100 M.N. | H31: =IF(B31>0,VLOOKUP(B31,PU,4,0),0) -> $73,850.12
A32: Concepto | B32: 1.4.2 | C32: Suministro y colocación de carpeta asfáltica elaborada en planta, con cemento asfaltico PG 70-22 y agregado triturado calizo total máximo de 1" a finos de 5.0 cms de espesor compactados, 95% de su p.v.s.m., de acuerdo a las normas vigentes de la s.c.t. incluye; limpieza del tramo, nivelación con GPS e hilos de guia, tirada en carpetas de 4 m de ancho cada una con su longitud total, nivel de tolerancia de falla estricto de acuerdo a niveles y tendido de carpeta. (incluye: especificación particular y general). | D32: m2 | E32: 8627.35 | F32: =IF(B32>0,VLOOKUP(B32,PU,3,0),0) -> $229.72 | G32: =IF(B32>0,VLOOKUP(B32,PU,5,0),0) -> DOSCIENTOS VEINTINUEVE PESOS 72/100 M.N. | H32: =IF(B32>0,VLOOKUP(B32,PU,4,0),0) -> $1,981,874.84
A33: Nivel 3 | B33: 1.5 | C33: PUENTE | H33: =SUM(H34:H39) -> $517,856.54
A34: Concepto | B34: 1.5.1 | C34: Trazo y nivelación de área a intervenir; Incluye: material, mano de obra, herramienta, y todo lo necesario para su correcta ejecución. (incluye: especificación particular y general). | D34: m2 | E34: 145.00 | F34: =IF(B34>0,VLOOKUP(B34,PU,3,0),0) -> $5.11 | G34: =IF(B34>0,VLOOKUP(B34,PU,5,0),0) -> CINCO PESOS 11/100 M.N. | H34: =IF(B34>0,VLOOKUP(B34,PU,4,0),0) -> $740.95
A35: Concepto | B35: 1.5.2 | C35: Limpieza de tramo de arroyo con maquinaria, a una altura de 1.00 m de acuerdo a niveles, incluye: herramienta, equipo, maquinaria, mano de obra, así como todo lo necesario para su correcta ejecución. (incluye: especificación particular y general). | D35: m2 | E35: 145.00 | F35: $183.20 | G35: CIENTO OCHENTA Y TRES PESOS 20/100 M.N. | H35: $26,564.00
A36: Concepto | B36: 1.5.3 | C36: Retiro de árboles endémicos existentes dentro de cause del Rio con un diámetro de tronco promedio de 10", una altura promedio de 15 metros, con follaje extendido, incluye: herramienta, equipo, maquinaria, mano de obra, así como todo lo necesario para su correcta ejecución. (incluye: especificación particular y general). | D36: pza | E36: 40.00 | F36: $1,207.96 | G36: UN MIL DOSCIENTOS SIETE PESOS 96/100 M.N. | H36: $48,318.40
A37: Concepto | B37: 1.5.4 | C37: Carga y acarreo a tiro libre fuera de la obra de material producto de excavación, demoliciones, en camión, hasta una distancia promedio de 5 km. (incluye: especificación particular y general). | D37: m3 | E37: 145.00 | F37: $54.25 | G37: CINCUENTA Y CUATRO PESOS 25/100 M.N. | H37: $7,866.25
A38: Concepto | B38: 1.5.5 | C38: Suministro y colocación de puente media luna baja de concreto prefabricadas de 83" x 40" x 96", peso de 4300 kg por pieza, Incluye: material, mano de obra, herramienta, y todo lo necesario para su correcta ejecución. (incluye: especificación particular y general). | D38: pza | E38: 21.00 | F38: $20,604.10 | G38: VEINTE MIL SEISCIENTOS CUATRO PESOS 10/100 M.N. | H38: $432,686.10
A39: Concepto | B39: 1.5.6 | C39: Construcción de dentellón de 100 lts/ml, Incluye; excavación en material "B-C 70-30", afine, cimbrado y colado. (ESP-01)(ESP-02)(ESP-03), (concreto suministrado por municipio). (incluye: especificación particular y general). | D39: m | E39: 28.00 | F39: $60.03 | G39: SESENTA PESOS 03/100 M.N. | H39: $1,680.84
A40: Nivel 3 | B40: 1.6 | C40: DUCTO PREPARACIÓN PASO ELÉCTRICO | H40: =SUM(H41:H41) -> $6,633.06
A41: Concepto | B41: 1.6.1 | C41: Tubo pad corrugado de 4" para paso de cableado eléctrico únicamente tubo dejando cubiertas la puntas para su posterior apertura, dejando las líneas instaladas antes de colocar carpeta de asfalto o concreto, encofrado en encofrado de arena con una capa superior de concreto pobre f´c= 100 kg/cm2, Incluye: material, mano de obra, herramienta, y todo lo necesario para su correcta ejecución. (incluye: especificación particular y general). | D41: m | E41: 42.00 | F41: =IF(B41>0,VLOOKUP(B41,PU,3,0),0) -> $157.93 | G41: =IF(B41>0,VLOOKUP(B41,PU,5,0),0) -> CIENTO CINCUENTA Y SIETE PESOS 93/100 M.N. | H41: =IF(B41>0,VLOOKUP(B41,PU,4,0),0) -> $6,633.06
A42: Nivel 3 | B42: 1.7 | C42: MARCAS EN PISTA | H42: =SUM(H43:H43) -> $22,510.00
A43: Concepto | B43: 5.1 | C43: Suministro y aplicación de raya color blanco y/o amarilla, mca. Comex o similar, continua sencilla para delimitar carriles, de 10 cm de ancho a base de pintura para trafico color blanco y/o amarillo reflejante, incluye: materiales, mano de obra, equipo y herramienta. P.U.O.T. (incluye: especificación particular y general). | D43: m | E43: 1000.00 | F43: =IF(B43>0,VLOOKUP(B43,PU,3,0),0) -> $22.51 | G43: =IF(B43>0,VLOOKUP(B43,PU,5,0),0) -> VEINTIDOS PESOS 51/100 M.N. | H43: =IF(B43>0,VLOOKUP(B43,PU,4,0),0) -> $22,510.00
A44: Subcapítulo | B44: 2 | C44: MURO DE PROETCCIÓN | H44: =SUM(H45:H52) -> $1,486,263.61
A45: Concepto | B45: 2.1 | C45: Trazo y nivelación de área a intervenir; Incluye: material, mano de obra, herramienta, y todo lo necesario para su correcta ejecución. (incluye: especificación particular y general). | D45: m2 | E45: 960.00 | F45: =IF(B45>0,VLOOKUP(B45,PU,3,0),0) -> $5.11 | G45: =IF(B45>0,VLOOKUP(B45,PU,5,0),0) -> CINCO PESOS 11/100 M.N. | H45: =IF(B45>0,VLOOKUP(B45,PU,4,0),0) -> $4,905.60
A46: Concepto | B46: 2.2 | C46: Excavación en material tipo "b" con uso de maquinaria retroexcavadora, hasta una profundidad máxima de 0.80 m con un ancho de 1.10 m, inc. trazo con cal, verificación de niveles, afine de taludes, fondos y traspaleo del material a un costado de la zanja. (incluye: especificación particular y general). | D46: m3 | E46: 392.00 | F46: $136.36 | G46: CIENTO TREINTA Y SEIS PESOS 36/100 M.N. | H46: $53,453.12
A47: Concepto | B47: 2.3 | C47: Plantilla de concreto hecho en obra, Fc 100 kg/cm2, de 5 cm de espesor, incluye: Material, mano de obra, herramienta, equipo, limpieza del lugar de trabajo, y todo lo necesario para su correcta ejecución. (incluye: especificación particular y general). | D47: m2 | E47: 960.00 | F47: $269.87 | G47: DOSCIENTOS SESENTA Y NUEVE PESOS 87/100 M.N. | H47: $259,075.20
A48: Concepto | B48: 2.4 | C48: Suministro y habilitado de acero de refuerzo del #3, incluye: Material, mano de obra, herramienta, equipo, limpieza del lugar de trabajo, y todo lo necesario para su correcta ejecución. (incluye: especificación particular y general). | D48: kg | E48: 23030.80 | F48: $39.24 | G48: TREINTA Y NUEVE PESOS 24/100 M.N. | H48: $903,728.59
A49: Concepto | B49: 2.5 | C49: Cimbra Y Des cimbra metálica para muro de contención, a base de lamina negra lisa de 3´x10´ (ft), con bastidor de perfil pc de 2"x2", en marco de sección de muro y 2 travesaños intermedios (a cada 0.75 m promedio), incluye; mano de obra, herramienta, equipo y todo lo necesario para su correcta ejecución. (incluye: especificación particular y general). | D49: m2 | E49: 3200.00 | F49: $56.19 | G49: CINCUENTA Y SEIS PESOS 19/100 M.N. | H49: $179,808.00
A50: Concepto | B50: 2.6 | C50: Colado de concreto hidráulico MR= 42.5 en muro de contención, en secciones de 3.05 m (10 ft), incluye; mano de obra, herramienta, equipo y todo lo necesario para su correcta ejecución. (concreto suministrado por municipio). (incluye: especificación particular y general). | D50: m3 | E50: 448.00 | F50: $148.31 | G50: CIENTO CUARENTA Y OCHO PESOS 31/100 M.N. | H50: $66,442.88
A51: Concepto | B51: 2.7 | C51: Camisa a base de tubo de 4" de pvc a cada 10 metros en muro de contención a nivel de asfalto para desague de pista, incluye: Material, mano de obra, herramienta, equipo, limpieza del lugar de trabajo, y todo lo necesario para su correcta ejecución. (incluye: especificación particular y general). | D51: pza | E51: 160.00 | F51: $14.54 | G51: CATORCE PESOS 54/100 M.N. | H51: $2,326.40
A52: Concepto | B52: 2.8 | C52: Relleno de elementos de cimentación con material seleccionado producto de la excavación, compactado en capas no mayores de 20 cm. de espesor, Incluye: incorporación de humedad. (incluye: especificación particular y general). | D52: m3 | E52: 82.00 | F52: $201.51 | G52: DOSCIENTOS UNO PESOS 51/100 M.N. | H52: $16,523.82
A53: Subcapítulo | B53: 3 | C53: CARRIL DE RETORNO | H53: =H54+H60+H70 -> $1,511,824.21
A54: Nivel 3 | B54: 3.1 | C54: PRELIMINARES | H54: =SUM(H55:H59) -> $168,386.18
A55: Concepto | B55: 3.1.1 | C55: Trazo y nivelación de área a intervenir; Incluye: material, mano de obra, herramienta, y todo lo necesario para su correcta ejecución. (incluye: especificación particular y general). | D55: m2 | E55: 2686.06 | F55: =IF(B55>0,VLOOKUP(B55,PU,3,0),0) -> $5.11 | G55: =IF(B55>0,VLOOKUP(B55,PU,5,0),0) -> CINCO PESOS 11/100 M.N. | H55: =IF(B55>0,VLOOKUP(B55,PU,4,0),0) -> $13,725.77
A56: Concepto | B56: 3.1.2 | C56: Despalme por medios mecánicos, para albergar terracerias para mejoramiento de terreno, hasta una profundidad promedio de 0.35 m, incluye: mano de obra, herramienta, equipo, maquinaria y todo lo necesario para su correcta ejecución. (incluye: especificación particular y general). | D56: m3 | E56: 941.69 | F56: =IF(B56>0,VLOOKUP(B56,PU,3,0),0) -> $20.96 | G56: =IF(B56>0,VLOOKUP(B56,PU,5,0),0) -> VEINTE PESOS 96/100 M.N. | H56: =IF(B56>0,VLOOKUP(B56,PU,4,0),0) -> $19,737.82
A57: Concepto | B57: 3.1.3 | C57: Corte por medios mecánicos, para albergar terracerias para mejoramiento de terreno, hasta una profundidad promedio de 1.00 m, incluye: material, mano de obra, herramienta, equipo y todo lo necesario para su correcta ejecución. (incluye: especificación particular y general). | D57: m3 | E57: 470.36 | F57: =IF(B57>0,VLOOKUP(B57,PU,3,0),0) -> $36.64 | G57: =IF(B57>0,VLOOKUP(B57,PU,5,0),0) -> TREINTA Y SEIS PESOS 64/100 M.N. | H57: =IF(B57>0,VLOOKUP(B57,PU,4,0),0) -> $17,233.99
A58: Concepto | B58: 3.1.4 | C58: Carga y acarreo a tiro libre fuera de la obra de material producto de excavación, demoliciones, en camión, hasta una distancia promedio de 5 km. (incluye: especificación particular y general). | D58: m3 | E58: 1835.66 | F58: =IF(B58>0,VLOOKUP(B58,PU,3,0),0) -> $54.25 | G58: =IF(B58>0,VLOOKUP(B58,PU,5,0),0) -> CINCUENTA Y CUATRO PESOS 25/100 M.N. | H58: =IF(B58>0,VLOOKUP(B58,PU,4,0),0) -> $99,584.56
A59: Concepto | B59: 3.1.5 | C59: Limpieza durante y final de obra, incluye; mano de obra, equipo, herramientas, y todo lo necesario para su correcta ejecución. (incluye: especificación particular y general). | D59: m2 | E59: 2686.06 | F59: =IF(B59>0,VLOOKUP(B59,PU,3,0),0) -> $6.74 | G59: =IF(B59>0,VLOOKUP(B59,PU,5,0),0) -> SEIS PESOS 74/100 M.N. | H59: =IF(B59>0,VLOOKUP(B59,PU,4,0),0) -> $18,104.04
A60: Nivel 3 | B60: 3.2 | C60: TERRACERIAS | H60: =SUM(H61:H69) -> $754,197.05
A61: Concepto | B61: 3.2.1 | C61: Tratamiento de terreno natural para formar un piso compacto en un espesor de 20 cm, incluye; afine, sin escarificar, incorporación de humedad, eliminando las particulas mayores a 3" y compactado al 95% de su PVSM determinado mediante las pruebas PROCTOR o AASHTO según se requiera. Supervisión y laboratorio sólo checarán y recibirán tramos completos en caso de ser calles aisladas. (incluye: especificación particular y general). | D61: m2 | E61: 2686.06 | F61: =IF(B61>0,VLOOKUP(B61,PU,3,0),0) -> $42.66 | G61: =IF(B61>0,VLOOKUP(B61,PU,5,0),0) -> CUARENTA Y DOS PESOS 66/100 M.N. | H61: =IF(B61>0,VLOOKUP(B61,PU,4,0),0) -> $114,587.32
A62: Concepto | B62: 3.2.2 | C62: Suministro de matacan de 2" - 8", espesor de 0.30 m, libre de particulas finas incluye; suministro, acarreos dentro de la obra necesarios para su correcta ejecución. (incluye: especificación particular y general). | D62: m3 | E62: 537.21 | F62: $220.78 | G62: DOSCIENTOS VEINTE PESOS 78/100 M.N. | H62: $118,605.22
A63: Concepto | B63: 3.2.3 | C63: Tratamiento de matacan de 2"- 8" para zona de corte, incluye: afine, escarificación, incorporación de humedad, bandeo hasta lograr su acomodo y compactado al 95% de su PVSM determinado mediante las pruebas PROCTOR o AASHTO según se requiera. Supervisión y laboratorio sólo checarán y recibirán tramos completos. (incluye: especificación particular y general). | D63: m3 | E63: 537.21 | F63: $36.62 | G63: TREINTA Y SEIS PESOS 62/100 M.N. | H63: $19,672.63
A64: Concepto | B64: 3.2.4 | C64: Suministro de sub-base hidráulica, espesor de 0.15 m, incluye: solo suministro puesto en obra medido suelto, de acuerdo a las normas vigentes S.C.T., A.S.T.M., Y NMX. (incluye: especificación particular y general). | D64: m3 | E64: 523.78 | F64: $157.46 | G64: CIENTO CINCUENTA Y SIETE PESOS 46/100 M.N. | H64: $82,474.40
A65: Concepto | B65: 3.2.5 | C65: Tratamiento de sub-base hidráulica, incluye: afine, escarificación, incorporación de humedad y compactado al 100 % de su PVSM determinado mediante las pruebas PROCTOR o AASHTO según se requiera. Supervisión y laboratorio sólo checarán y recibirán tramos completos. (incluye: especificación particular y general). | D65: m3 | E65: 402.91 | F65: $91.33 | G65: NOVENTA Y UN PESOS 33/100 M.N. | H65: $36,797.77
A66: Concepto | B66: 3.2.6 | C66: Suministro de base hidráulica triturada, espesor de 0.20 m, incluye: solo suministro puesto en obra medido suelto, de acuerdo a las normas vigentes S.C.T., A.S.T.M., Y NMX. (incluye: especificación particular y general). | D66: m3 | E66: 698.37 | F66: $356.88 | G66: TRESCIENTOS CINCUENTA Y SEIS PESOS 88/100 M.N. | H66: $249,234.29
A67: Concepto | B67: 3.2.7 | C67: Tratamiento de base hidráulica triturada, incluye: afine, escarificación, incorporación de humedad y compactado al 100 % de su PVSM determinado mediante las pruebas PROCTOR o AASHTO según se requiera. Supervisión y laboratorio sólo checarán y recibirán tramos completos. (incluye: especificación particular y general). | D67: m3 | E67: 537.21 | F67: $120.65 | G67: CIENTO VEINTE PESOS 65/100 M.N. | H67: $64,814.39
A68: Concepto | B68: 3.2.8 | C68: Impregnacion de la base con emulsion asfaltica de rompimiento lento a razon de 1.2 a 1.5 lt/m2. Incluye limpieza de superficie. (incluye: especificación particular y general). | D68: m2 | E68: 2686.06 | F68: $23.08 | G68: VEINTITRES PESOS 08/100 M.N. | H68: $61,994.26
A69: Concepto | B69: 3.2.9 | C69: Poreo a base de arena n° 8 en proporcion de 6 a 8 lt/m2, incluye; suministro, acarreos dentro de la obra necesarios para su correcta ejecución. (incluye: especificación particular y general). | D69: m2 | E69: 2686.06 | F69: $2.24 | G69: DOS PESOS 24/100 M.N. | H69: $6,016.77
A70: Nivel 3 | B70: 3.3 | C70: CARPETA ASFALTICA | H70: =SUM(H71:H72) -> $589,240.98
A71: Concepto | B71: 3.3.1 | C71: Riego de liga a base de emulsión asfáltica rr-2k de acuerdo a normas s.c.t. vigentes (0.3 a 0.5) lts/m2, el cual podrá variar en función de las condiciones de la superficie por tender. (incluye: especificación particular y general). | D71: m2 | E71: 2686.06 | F71: =IF(B71>0,VLOOKUP(B71,PU,3,0),0) -> $8.56 | G71: =IF(B71>0,VLOOKUP(B71,PU,5,0),0) -> OCHO PESOS 56/100 M.N. | H71: =IF(B71>0,VLOOKUP(B71,PU,4,0),0) -> $22,992.67
A72: Concepto | B72: 3.3.2 | C72: Suministro y colocación de carpeta asfáltica elaborado en planta, con cemento asfaltico ac-20 y agregado triturado calizo total máximo de 3/4" a finos de 4.0 cms de espesor compactados, 100% de su p.v.s.m., de acuerdo a las normas vigentes de la s.c.t. incluye limpieza del tramo. (incluye: especificación particular y general). | D72: m2 | E72: 2686.06 | F72: =IF(B72>0,VLOOKUP(B72,PU,3,0),0) -> $210.81 | G72: =IF(B72>0,VLOOKUP(B72,PU,5,0),0) -> DOSCIENTOS DIEZ PESOS 81/100 M.N. | H72: =IF(B72>0,VLOOKUP(B72,PU,4,0),0) -> $566,248.31
A73: Subcapítulo | B73: 4 | C73: GRADAS | H73: =H74+H79+H87 -> $580,270.50
A74: Nivel 3 | B74: 4.1 | C74: PRELIMINARES | H74: =SUM(H75:H78) -> $43,999.50
A75: Concepto | B75: 4.1.1 | C75: Trazo y nivelación de área a intervenir; Incluye: material, mano de obra, herramienta, y todo lo necesario para su correcta ejecución. (incluye: especificación particular y general). | D75: m2 | E75: 1000.00 | F75: =IF(B75>0,VLOOKUP(B75,PU,3,0),0) -> $5.11 | G75: =IF(B75>0,VLOOKUP(B75,PU,5,0),0) -> CINCO PESOS 11/100 M.N. | H75: =IF(B75>0,VLOOKUP(B75,PU,4,0),0) -> $5,110.00
A76: Concepto | B76: 4.1.2 | C76: Corte por medios mecánicos, para albergar terracerias para mejoramiento de terreno, hasta una profundidad promedio de 1.00 m, incluye: material, mano de obra, herramienta, equipo y todo lo necesario para su correcta ejecución. (incluye: especificación particular y general). | D76: m3 | E76: 300.00 | F76: =IF(B76>0,VLOOKUP(B76,PU,3,0),0) -> $36.64 | G76: =IF(B76>0,VLOOKUP(B76,PU,5,0),0) -> TREINTA Y SEIS PESOS 64/100 M.N. | H76: =IF(B76>0,VLOOKUP(B76,PU,4,0),0) -> $10,992.00
A77: Concepto | B77: 4.1.3 | C77: Carga y acarreo a tiro libre fuera de la obra de material producto de excavación, demoliciones, en camión, hasta una distancia promedio de 5 km. (incluye: especificación particular y general). | D77: m3 | E77: 390.00 | F77: =IF(B77>0,VLOOKUP(B77,PU,3,0),0) -> $54.25 | G77: =IF(B77>0,VLOOKUP(B77,PU,5,0),0) -> CINCUENTA Y CUATRO PESOS 25/100 M.N. | H77: =IF(B77>0,VLOOKUP(B77,PU,4,0),0) -> $21,157.50
A78: Concepto | B78: 4.1.4 | C78: Limpieza durante y final de obra, incluye; mano de obra, equipo, herramientas, y todo lo necesario para su correcta ejecución. (incluye: especificación particular y general). | D78: m2 | E78: 1000.00 | F78: =IF(B78>0,VLOOKUP(B78,PU,3,0),0) -> $6.74 | G78: =IF(B78>0,VLOOKUP(B78,PU,5,0),0) -> SEIS PESOS 74/100 M.N. | H78: =IF(B78>0,VLOOKUP(B78,PU,4,0),0) -> $6,740.00
A79: Nivel 3 | B79: 4.2 | C79: TERRACERIAS | H79: =SUM(H80:H86) -> $262,118.80
A80: Concepto | B80: 4.2.1 | C80: Tratamiento de terreno natural para formar un piso compacto en un espesor de 20 cm, incluye; afine, sin escarificar, incorporación de humedad, eliminando las particulas mayores a 3" y compactado al 95% de su PVSM determinado mediante las pruebas PROCTOR o AASHTO según se requiera. Supervisión y laboratorio sólo checarán y recibirán tramos completos en caso de ser calles aisladas. (incluye: especificación particular y general). | D80: m2 | E80: 1000.00 | F80: =IF(B80>0,VLOOKUP(B80,PU,3,0),0) -> $42.66 | G80: =IF(B80>0,VLOOKUP(B80,PU,5,0),0) -> CUARENTA Y DOS PESOS 66/100 M.N. | H80: =IF(B80>0,VLOOKUP(B80,PU,4,0),0) -> $42,660.00
A81: Concepto | B81: 4.2.2 | C81: Suministro de matacan de 2" - 8", espesor de 0.30 m, libre de particulas finas incluye; suministro, acarreos dentro de la obra necesarios para su correcta ejecución. (incluye: especificación particular y general). | D81: m3 | E81: 300.00 | F81: $220.78 | G81: DOSCIENTOS VEINTE PESOS 78/100 M.N. | H81: $66,234.00
A82: Concepto | B82: 4.2.3 | C82: Tratamiento de matacan de 2"- 8" para zona de corte, incluye: afine, escarificación, incorporación de humedad, bandeo hasta lograr su acomodo y compactado al 95% de su PVSM determinado mediante las pruebas PROCTOR o AASHTO según se requiera. Supervisión y laboratorio sólo checarán y recibirán tramos completos. (incluye: especificación particular y general). | D82: m3 | E82: 300.00 | F82: $36.62 | G82: TREINTA Y SEIS PESOS 62/100 M.N. | H82: $10,986.00
A83: Concepto | B83: 4.2.4 | C83: Suministro de base hidráulica triturada, espesor de 0.20 m, incluye: solo suministro puesto en obra medido suelto, de acuerdo a las normas vigentes S.C.T., A.S.T.M., Y NMX. (incluye: especificación particular y general). | D83: m3 | E83: 260.00 | F83: $356.88 | G83: TRESCIENTOS CINCUENTA Y SEIS PESOS 88/100 M.N. | H83: $92,788.80
A84: Concepto | B84: 4.2.5 | C84: Tratamiento de base hidráulica triturada, incluye: afine, escarificación, incorporación de humedad y compactado al 100 % de su PVSM determinado mediante las pruebas PROCTOR o AASHTO según se requiera. Supervisión y laboratorio sólo checarán y recibirán tramos completos. (incluye: especificación particular y general). | D84: m3 | E84: 200.00 | F84: $120.65 | G84: CIENTO VEINTE PESOS 65/100 M.N. | H84: $24,130.00
A85: Concepto | B85: 4.2.6 | C85: Impregnacion de la base con emulsion asfaltica de rompimiento lento a razon de 1.2 a 1.5 lt/m2. Incluye limpieza de superficie. (incluye: especificación particular y general). | D85: m2 | E85: 1000.00 | F85: $23.08 | G85: VEINTITRES PESOS 08/100 M.N. | H85: $23,080.00
A86: Concepto | B86: 4.2.7 | C86: Poreo a base de arena n° 8 en proporcion de 6 a 8 lt/m2, incluye; suministro, acarreos dentro de la obra necesarios para su correcta ejecución. (incluye: especificación particular y general). | D86: m2 | E86: 1000.00 | F86: $2.24 | G86: DOS PESOS 24/100 M.N. | H86: $2,240.00
A87: Nivel 3 | B87: 4.3 | C87: CARPETA DE CONCRETO | H87: =SUM(H88:H90) -> $274,152.20
A88: Concepto | B88: 4.3.1 | C88: Tendido de carpeta de concreto hidráulico MR= 42.5 de 0.1504 m de espesor (6") con un ancho de losa no mayor de 3.60 m, junta longitudinal con varilla corrugada de 1/2" de 45 cm @ 60 cm, junta transversal aserrada a 1/3 del espesor de la losa de profundidad y la separación entre juntas no mayor de 24 espesores. (concreto suministrado por municipio), (incluye: especificación particular y general). | D88: m2 | E88: 1000.00 | F88: =IF(B88>0,VLOOKUP(B88,PU,3,0),0) -> $148.31 | G88: =IF(B88>0,VLOOKUP(B88,PU,5,0),0) -> CIENTO CUARENTA Y OCHO PESOS 31/100 M.N. | H88: =IF(B88>0,VLOOKUP(B88,PU,4,0),0) -> $148,310.00
A89: Concepto | B89: 4.3.2 | C89: Suministro y habilitado de acero de refuerzo del #3 @ 0.40m en ambos sentidos, para retícula para losa de concreto, incluye: Material, mano de obra, herramienta, equipo, limpieza del lugar de trabajo, y todo lo necesario para su correcta ejecución. (incluye: especificación particular y general). | D89: kg | E89: 2795.00 | F89: =IF(B89>0,VLOOKUP(B89,PU,3,0),0) -> $39.24 | G89: =IF(B89>0,VLOOKUP(B89,PU,5,0),0) -> TREINTA Y NUEVE PESOS 24/100 M.N. | H89: =IF(B89>0,VLOOKUP(B89,PU,4,0),0) -> $109,675.80
A90: Concepto | B90: 4.3.3 | C90: Corte y sellado de juntas en concreto aserrada a 1/3 del espesor de la losa de profundidad, separación entre juntas no mayor de 22 espesores en ambos sentidos, colocación de cola de rata 1/4" a una profundidad de 2.0" aplicacion de Sellador Ultralastic de 2 componentes catalizado, autonivelante, mca. Comex. Incluye: aspirado, limpieza, corte, retiro de exceso, materiales, mano de obra y lo necesario para su correcta construcción. (incluye: especificación particular y general). | D90: m | E90: 640.00 | F90: =IF(B90>0,VLOOKUP(B90,PU,3,0),0) -> $25.26 | G90: =IF(B90>0,VLOOKUP(B90,PU,5,0),0) -> VEINTICINCO PESOS 26/100 M.N. | H90: =IF(B90>0,VLOOKUP(B90,PU,4,0),0) -> $16,166.40
A91: Subcapítulo | B91: 5 | C91: ÁREA DE EXHIBICIÓN | H91: =H92+H98+H108 -> $298,466.53
A92: Nivel 3 | B92: 5.1 | C92: PRELIMINARES | H92: =SUM(H93:H97) -> $31,238.49
A93: Concepto | B93: 5.1.1 | C93: Trazo y nivelación de área a intervenir; Incluye: material, mano de obra, herramienta, y todo lo necesario para su correcta ejecución. (incluye: especificación particular y general). | D93: m2 | E93: 533.98 | F93: =IF(B93>0,VLOOKUP(B93,PU,3,0),0) -> $5.11 | G93: =IF(B93>0,VLOOKUP(B93,PU,5,0),0) -> CINCO PESOS 11/100 M.N. | H93: =IF(B93>0,VLOOKUP(B93,PU,4,0),0) -> $2,728.64
A94: Concepto | B94: 5.1.2 | C94: Despalme por medios mecánicos, para albergar terracerias para mejoramiento de terreno, hasta una profundidad promedio de 0.35 m, incluye: mano de obra, herramienta, equipo, maquinaria y todo lo necesario para su correcta ejecución. (incluye: especificación particular y general). | D94: m3 | E94: 186.07 | F94: =IF(B94>0,VLOOKUP(B94,PU,3,0),0) -> $20.96 | G94: =IF(B94>0,VLOOKUP(B94,PU,5,0),0) -> VEINTE PESOS 96/100 M.N. | H94: =IF(B94>0,VLOOKUP(B94,PU,4,0),0) -> $3,900.03
A95: Concepto | B95: 5.1.3 | C95: Corte por medios mecánicos, para albergar terracerias para mejoramiento de terreno, hasta una profundidad promedio de 1.00 m, incluye: material, mano de obra, herramienta, equipo y todo lo necesario para su correcta ejecución. (incluye: especificación particular y general). | D95: m3 | E95: 73.61 | F95: =IF(B95>0,VLOOKUP(B95,PU,3,0),0) -> $36.64 | G95: =IF(B95>0,VLOOKUP(B95,PU,5,0),0) -> TREINTA Y SEIS PESOS 64/100 M.N. | H95: =IF(B95>0,VLOOKUP(B95,PU,4,0),0) -> $2,697.07
A96: Concepto | B96: 5.1.4 | C96: Carga y acarreo a tiro libre fuera de la obra de material producto de excavación, demoliciones, en camión, hasta una distancia promedio de 5 km. (incluye: especificación particular y general). | D96: m3 | E96: 337.58 | F96: =IF(B96>0,VLOOKUP(B96,PU,3,0),0) -> $54.25 | G96: =IF(B96>0,VLOOKUP(B96,PU,5,0),0) -> CINCUENTA Y CUATRO PESOS 25/100 M.N. | H96: =IF(B96>0,VLOOKUP(B96,PU,4,0),0) -> $18,313.72
A97: Concepto | B97: 5.1.5 | C97: Limpieza durante y final de obra, incluye; mano de obra, equipo, herramientas, y todo lo necesario para su correcta ejecución. (incluye: especificación particular y general). | D97: m2 | E97: 533.98 | F97: =IF(B97>0,VLOOKUP(B97,PU,3,0),0) -> $6.74 | G97: =IF(B97>0,VLOOKUP(B97,PU,5,0),0) -> SEIS PESOS 74/100 M.N. | H97: =IF(B97>0,VLOOKUP(B97,PU,4,0),0) -> $3,599.03
A98: Nivel 3 | B98: 5.2 | C98: TERRACERIAS | H98: =SUM(H99:H107) -> $150,088.85
A99: Concepto | B99: 5.2.1 | C99: Tratamiento de terreno natural para formar un piso compacto en un espesor de 20 cm, incluye; afine, sin escarificar, incorporación de humedad, eliminando las particulas mayores a 3" y compactado al 95% de su PVSM determinado mediante las pruebas PROCTOR o AASHTO según se requiera. Supervisión y laboratorio sólo checarán y recibirán tramos completos en caso de ser calles aisladas. (incluye: especificación particular y general). | D99: m2 | E99: 533.98 | F99: =IF(B99>0,VLOOKUP(B99,PU,3,0),0) -> $42.66 | G99: =IF(B99>0,VLOOKUP(B99,PU,5,0),0) -> CUARENTA Y DOS PESOS 66/100 M.N. | H99: =IF(B99>0,VLOOKUP(B99,PU,4,0),0) -> $22,779.59
A100: Concepto | B100: 5.2.2 | C100: Suministro de matacan de 2" - 8", espesor de 0.30 m, libre de particulas finas incluye; suministro, acarreos dentro de la obra necesarios para su correcta ejecución. (incluye: especificación particular y general). | D100: m3 | E100: 106.79 | F100: $220.78 | G100: DOSCIENTOS VEINTE PESOS 78/100 M.N. | H100: $23,577.10
A101: Concepto | B101: 5.2.3 | C101: Tratamiento de matacan de 2"- 8" para zona de corte, incluye: afine, escarificación, incorporación de humedad, bandeo hasta lograr su acomodo y compactado al 95% de su PVSM determinado mediante las pruebas PROCTOR o AASHTO según se requiera. Supervisión y laboratorio sólo checarán y recibirán tramos completos. (incluye: especificación particular y general). | D101: m3 | E101: 106.79 | F101: $36.62 | G101: TREINTA Y SEIS PESOS 62/100 M.N. | H101: $3,910.65
A102: Concepto | B102: 5.2.4 | C102: Suministro de sub-base hidráulica, incluye: solo suministro puesto en obra medido suelto, de acuerdo a las normas vigentes S.C.T., A.S.T.M., Y NMX. (incluye: especificación particular y general). | D102: m3 | E102: 104.12 | F102: $157.46 | G102: CIENTO CINCUENTA Y SIETE PESOS 46/100 M.N. | H102: $16,394.74
A103: Concepto | B103: 5.2.5 | C103: Tratamiento de sub-base hidráulica, incluye: afine, escarificación, incorporación de humedad y compactado al 100 % de su PVSM determinado mediante las pruebas PROCTOR o AASHTO según se requiera. Supervisión y laboratorio sólo checarán y recibirán tramos completos. (incluye: especificación particular y general). | D103: m3 | E103: 80.10 | F103: $93.34 | G103: NOVENTA Y TRES PESOS 34/100 M.N. | H103: $7,476.53
A104: Concepto | B104: 5.2.6 | C104: Suministro de base hidráulica, incluye: solo suministro puesto en obra medido suelto, de acuerdo a las normas vigentes S.C.T., A.S.T.M., Y NMX. (incluye: especificación particular y general). | D104: m3 | E104: 138.83 | F104: $356.88 | G104: TRESCIENTOS CINCUENTA Y SEIS PESOS 88/100 M.N. | H104: $49,545.65
A105: Concepto | B105: 5.2.7 | C105: Tratamiento de base hidráulica, incluye: afine, escarificación, incorporación de humedad y compactado al 100 % de su PVSM determinado mediante las pruebas PROCTOR o AASHTO según se requiera. Supervisión y laboratorio sólo checarán y recibirán tramos completos. (incluye: especificación particular y general). | D105: m3 | E105: 106.79 | F105: $120.65 | G105: CIENTO VEINTE PESOS 65/100 M.N. | H105: $12,884.21
A106: Concepto | B106: 5.2.8 | C106: Impregnacion de la base con emulsion asfaltica de rompimiento lento a razon de 1.2 a 1.5 lt/m2. Incluye limpieza de superficie. (incluye: especificación particular y general). | D106: m2 | E106: 533.98 | F106: $23.08 | G106: VEINTITRES PESOS 08/100 M.N. | H106: $12,324.26
A107: Concepto | B107: 5.2.9 | C107: Poreo a base de arena n° 8 en proporcion de 6 a 8 lt/m2, incluye; suministro, acarreos dentro de la obra necesarios para su correcta ejecución. (incluye: especificación particular y general). | D107: m2 | E107: 533.98 | F107: $2.24 | G107: DOS PESOS 24/100 M.N. | H107: $1,196.12
A108: Nivel 3 | B108: 5.3 | C108: CARPETA ASFALTICA | H108: =SUM(H109:H110) -> $117,139.19
A109: Concepto | B109: 5.3.1 | C109: Riego de liga a base de emulsión asfáltica rr-2k de acuerdo a normas s.c.t. vigentes (0.3 a 0.5) lts/m2, el cual podrá variar en función de las condiciones de la superficie por tender. (incluye: especificación particular y general). | D109: m2 | E109: 533.98 | F109: =IF(B109>0,VLOOKUP(B109,PU,3,0),0) -> $8.56 | G109: =IF(B109>0,VLOOKUP(B109,PU,5,0),0) -> OCHO PESOS 56/100 M.N. | H109: =IF(B109>0,VLOOKUP(B109,PU,4,0),0) -> $4,570.87
A110: Concepto | B110: 5.3.2 | C110: Suministro y colocación de carpeta asfáltica elaborado en planta, con cemento asfaltico ac-20 y agregado triturado calizo total máximo de 3/4" a finos de 4.0 cms de espesor compactados, 100% de su p.v.s.m., de acuerdo a las normas vigentes de la s.c.t. incluye limpieza del tramo. (incluye: especificación particular y general). | D110: m2 | E110: 533.98 | F110: =IF(B110>0,VLOOKUP(B110,PU,3,0),0) -> $210.81 | G110: =IF(B110>0,VLOOKUP(B110,PU,5,0),0) -> DOSCIENTOS DIEZ PESOS 81/100 M.N. | H110: =IF(B110>0,VLOOKUP(B110,PU,4,0),0) -> $112,568.32
F112: Sub-Total | H112: =H6 -> $10,610,501.52
F113: I.V.A. | H113: =H112*0.16 -> $1,697,680.24
F114: Total | H114: =SUM(H112:H113) -> $12,308,181.76
